bitfinex/quotes_SOLUSD_20241218
["timestamp","ask_amount","ask_price","bid_price","bid_amount"]
[1734538328177,1.1519,217.03,216.97,14.02092048]
[1734538328894,1.1519,217.03,216.92,14.71231737]
[1734538328895,1.1519,217.03,216.96,14.02092048]
[1734538329198,14.02092048,216.99,216.92,14.02092048]
[1734538329405,14.02092048,216.99,216.91,14.02092048]
[1734538329717,14.02092048,217.02,216.95,14.02092048]
[1734538329887,34.02092048,217.04,216.96,14.02092048]
[1734538330488,20.0,217.04,216.98,14.02092048]
[1734538330782,14.02092048,217.06,216.99,14.02092048]
[1734538331102,15.17272048,217.05,216.98,14.02092048]
[1734538332015,1.1518,217.05,216.98,14.02092048]
[1734538332306,15.17272048,217.05,216.98,14.02092048]
[1734538332484,14.02092048,217.04,216.96,14.02092048]
[1734538332685,14.02092048,217.04,216.9,23.776884]
[1734538332686,14.02092048,217.0,216.93,14.02092048]
[1734538332886,14.02092048,216.99,216.92,14.02092048]
[1734538333285,14.02092048,217.05,216.98,14.02092048]
[1734538333710,14.02092048,217.04,216.97,14.02092048]
[1734538334174,14.02092048,217.03,216.96,14.02092048]
[1734538334378,14.02092048,217.0,216.93,14.02092048]
[1734538334797,14.02092048,217.02,216.94,14.02092048]
[1734538335222,14.02092048,217.01,216.94,14.02092048]
[1734538335423,14.02092048,217.0,216.93,14.02092048]
[1734538335713,14.02092048,217.02,216.94,14.02092048]
[1734538335874,14.02092048,217.02,216.95,14.02092048]
[1734538336084,14.02092048,217.04,216.97,14.02092048]
[1734538336310,14.02092048,217.04,216.96,14.02092048]
[1734538336690,14.02092048,217.05,216.98,14.02092048]
[1734538337410,14.02092048,217.05,216.97,14.02092048]
[1734538337791,14.02092048,217.04,216.96,14.02092048]
[1734538338108,14.02092048,217.03,216.95,14.02092048]
[1734538338305,14.02092048,217.01,216.94,14.02092048]
[1734538338607,14.02092048,217.01,216.95,2.68]
[1734538338813,14.02092048,217.01,216.94,14.02092048]
[1734538339313,15.17292048,217.01,216.93,14.02092048]
[1734538339680,14.02092048,217.0,216.93,14.02092048]
[1734538339882,1.152,217.01,216.94,14.02092048]
[1734538340287,14.02092048,217.01,216.94,14.02092048]
[1734538341218,14.02092048,217.02,216.95,14.02092048]
[1734538341814,15.17272048,217.04,216.96,14.02092048]
[1734538342014,14.02092048,217.03,216.96,14.02092048]
[1734538342379,15.17272048,217.04,216.97,14.02092048]
[1734538342814,14.02092048,217.04,216.97,14.02092048]
[1734538343596,14.02092048,217.03,216.96,14.02092048]
[1734538344422,14.02092048,217.05,216.97,14.02092048]
[1734538344594,14.02092048,217.05,216.93,23.776884]
[1734538344595,14.02092048,217.06,216.98,14.02092048]
[1734538344911,14.02092048,217.03,216.96,14.02092048]
[1734538345134,14.02092048,217.03,216.95,14.02092048]
[1734538345413,14.02092048,217.04,216.97,14.02092048]
[1734538345826,15.17272048,217.04,216.97,14.02092048]
[1734538346118,1.1518,217.04,216.97,14.02092048]
[1734538346299,15.17272048,217.04,216.97,14.02092048]
[1734538346687,1.1518,217.04,216.97,14.02092048]
[1734538347021,1.1518,217.04,216.98,14.02092048]
[1734538347724,14.02092048,217.06,216.98,14.02092048]
[1734538347901,15.17262048,217.07,216.99,14.02092048]
[1734538348791,15.17262048,217.07,216.94,23.776884]
[1734538348792,1.1517,217.07,217.01,14.02092048]
[1734538348997,15.17242048,217.1,217.03,14.02092048]
[1734538349614,15.17242048,217.1,217.02,14.02092048]
[1734538350129,14.02092048,217.09,217.01,14.02092048]
[1734538350832,15.17242048,217.1,217.02,14.02092048]
[1734538351015,14.02092048,217.12,217.05,14.02092048]
[1734538351896,14.02092048,217.12,217.04,14.02092048]
[1734538352199,14.02092048,217.12,217.05,14.02092048]
[1734538353123,15.17222048,217.13,217.06,14.02092048]
[1734538353327,2.302,217.2,217.09,14.02092048]
[1734538353531,7.7988,217.24,217.12,14.02092048]
[1734538353840,14.02092048,217.2,217.12,14.02092048]
[1734538354529,14.02092048,217.21,217.14,14.02092048]
[1734538355497,15.17172048,217.23,217.16,14.02092048]
[1734538356403,14.02092048,217.22,217.15,14.02092048]
[1734538356931,14.02092048,217.21,217.13,14.02092048]
[1734538357133,15.17192048,217.2,217.12,14.02092048]
[1734538357430,14.02092048,217.19,217.12,14.02092048]
[1734538357616,14.02092048,217.18,217.11,14.02092048]
[1734538357810,14.02092048,217.17,217.12,2.68]
[1734538358444,14.02092048,217.16,217.09,14.02092048]
[1734538358601,14.02092048,217.15,217.08,14.02092048]
[1734538358911,14.02092048,217.16,217.09,2.68]
[1734538359842,14.02092048,217.16,217.08,14.02092048]
[1734538360024,14.02092048,217.15,217.08,14.02092048]
[1734538360208,2.3017,217.23,217.08,14.02092048]
[1734538360209,14.02092048,217.16,217.08,14.02092048]
[1734538360531,2.3017,217.23,217.09,14.02092048]
[1734538360532,14.02092048,217.17,217.09,14.02092048]
[1734538361432,15.17212048,217.17,217.1,14.02092048]
[1734538361932,15.17212048,217.17,217.09,14.02092048]
[1734538365235,14.02092048,217.16,217.09,14.02092048]
[1734538365410,14.02092048,217.13,217.06,14.02092048]
[1734538365812,14.02092048,217.16,217.09,14.02092048]
[1734538366420,15.17212048,217.17,217.1,14.02092048]
[1734538367439,14.02092048,217.16,217.09,14.02092048]
[1734538367736,14.02092048,217.16,217.08,14.02092048]
[1734538367903,23.776884,217.21,217.07,14.02092048]
[1734538367904,14.02092048,217.14,217.07,14.02092048]
[1734538368109,1.1512,217.15,217.06,14.02092048]
[1734538368110,14.02092048,217.13,217.06,14.02092048]
[1734538369013,14.02092048,217.15,217.08,14.02092048]
[1734538370509,14.02092048,217.16,217.08,14.02092048]
[1734538370835,14.02092048,217.16,217.09,14.02092048]
[1734538371038,14.02092048,217.16,217.08,14.02092048]
[1734538371409,14.02092048,217.16,217.09,14.02092048]
[1734538371611,14.02092048,217.17,217.1,14.02092048]
[1734538371809,15.17212048,217.16,217.09,14.02092048]
[1734538372023,14.02092048,217.14,217.07,14.02092048]
[1734538372633,15.17212048,217.16,217.08,14.02092048]
[1734538374131,15.17222048,217.14,217.07,14.02092048]
[1734538374959,15.17222048,217.14,217.06,14.02092048]
[1734538375261,14.02092048,217.12,217.04,14.02092048]
[1734538375418,1.1513,217.14,217.03,14.02092048]
[1734538375419,14.02092048,217.11,217.03,14.02092048]
[1734538375618,14.02092048,217.1,217.03,14.02092048]
[1734538375863,14.02092048,217.06,216.99,14.02092048]
[1734538376145,14.02092048,217.06,216.91,0.69104987]
[1734538376146,8.96812638,217.04,216.96,8.96812638]
[1734538376326,8.96812638,217.0,216.93,1.5098]
[1734538376533,8.96812638,217.01,216.94,8.96812638]
[1734538377042,8.96812638,217.01,216.93,10.47792638]
[1734538377252,8.96812638,217.0,216.93,8.96812638]
[1734538378052,14.01681729,217.0,216.93,14.01681729]
[1734538378354,15.16881729,217.0,216.93,14.01681729]
[1734538380361,14.01681729,216.98,216.91,14.01681729]
[1734538380652,14.01681729,216.98,216.9,14.01681729]
[1734538380953,14.01681729,216.96,216.89,14.01681729]
[1734538381252,14.01681729,216.97,216.9,14.01681729]
[1734538381643,1.1522,216.97,216.9,14.01681729]
[1734538381962,15.16881729,217.01,216.94,14.01681729]
[1734538382444,14.01681729,217.0,216.93,14.01681729]
[1734538382666,21.152,217.01,216.89,0.8169442]
[1734538382667,14.01681729,216.99,216.92,14.01681729]
[1734538383228,20.0,216.96,216.92,14.01681729]
[1734538383648,14.01681729,216.99,216.92,14.01681729]
[1734538383968,20.0,216.95,216.9,14.01681729]
[1734538384127,20.0,216.95,216.89,14.01681729]
[1734538384429,34.01681729,216.95,216.87,14.01681729]
[1734538384623,20.0,216.93,216.89,14.01681729]
[1734538384823,14.01681729,216.99,216.92,14.01681729]
[1734538385055,20.0,216.97,216.93,14.01681729]
[1734538385256,20.0,216.97,216.92,14.01681729]
[1734538385453,20.0,216.97,216.89,0.12549]
[1734538385758,20.0,216.97,216.91,14.01681729]
[1734538388057,20.0,217.0,216.91,14.01681729]
[1734538388254,14.01681729,216.98,216.91,14.01681729]
[1734538388975,20.0,217.02,216.92,14.01681729]
[1734538389264,14.01681729,217.0,216.93,14.01681729]
[1734538389466,14.01681729,216.99,216.92,14.01681729]
[1734538390174,14.01681729,217.0,216.92,14.01681729]
[1734538390781,14.01681729,216.98,216.91,14.01681729]
[1734538391080,14.01681729,216.96,216.89,14.01681729]
[1734538391233,14.01681729,216.98,216.91,14.01681729]
[1734538391574,14.01681729,217.0,216.92,14.01681729]
[1734538392075,14.01681729,216.98,216.91,14.01681729]
[1734538392437,14.01681729,216.99,216.91,14.01681729]
[1734538393667,14.01681729,216.97,216.9,14.01681729]
[1734538394574,14.01681729,216.97,216.89,14.01681729]
[1734538394772,1.1522,216.96,216.89,14.01681729]
[1734538395466,1.1522,216.96,216.86,7.31607461]
[1734538395467,20.0,216.94,216.86,0.69147461]
[1734538395676,14.01681729,216.92,216.84,14.01681729]
[1734538395861,14.01681729,216.91,216.84,14.01681729]
[1734538396171,14.01681729,216.91,216.83,14.01681729]
[1734538396342,14.01681729,216.9,216.83,14.01681729]
[1734538397269,15.16941729,216.9,216.83,14.01681729]
[1734538398447,8.98018609,216.89,216.81,8.98018609]
[1734538399375,8.98018609,216.87,216.78,1.5925]
[1734538399575,8.98018609,216.87,216.8,8.98018609]
[1734538400372,8.98018609,216.85,216.73,1.5195]
[1734538400548,8.98018609,216.84,216.77,8.98018609]
[1734538401258,8.98018609,216.84,216.76,8.98018609]
[1734538401462,8.98018609,216.83,216.76,8.98018609]
[1734538401863,8.98018609,216.84,216.76,8.98018609]
[1734538402067,1.1528,216.86,216.78,8.98018609]
[1734538402382,1.1528,216.86,216.81,8.98018609]
[1734538402677,1.1528,216.86,216.73,2.2113914]
[1734538402678,8.98018609,216.84,216.73,2.2113914]
[1734538402883,8.98018609,216.82,216.75,8.98018609]
[1734538403058,8.98018609,216.84,216.76,8.98018609]
[1734538403252,8.98018609,216.82,216.75,8.98018609]
[1734538403457,8.98018609,216.83,216.76,8.98018609]
[1734538404060,10.13318609,216.83,216.76,8.98018609]
[1734538404576,1.153,216.83,216.76,8.98018609]
[1734538405155,1.153,216.83,216.73,1.5195]
[1734538405156,10.13318609,216.83,216.73,1.5195]
[1734538405354,8.98018609,216.82,216.75,8.98018609]
[1734538405578,8.98018609,216.8,216.66,1.6626]
[1734538405883,8.98018609,216.8,216.79,6.73e-05]
[1734538406082,10.13328609,216.8,216.79,6.73e-05]
[1734538407296,33.91017009,216.8,216.79,6.73e-05]
[1734538407994,33.91017009,216.8,216.66,10.64278609]
[1734538408150,1.1531,216.8,216.7,8.98018609]
[1734538408351,1.1531,216.8,216.76,8.98018609]
[1734538409080,1.1531,216.8,216.75,8.98018609]
[1734538409282,1.1531,216.8,216.74,8.98018609]
[1734538410083,15.19435375,216.8,216.73,14.04125375]
[1734538412165,14.04125375,216.79,216.71,14.04125375]
[1734538412798,1.1531,216.8,216.71,14.04125375]
[1734538413092,6.3857,216.83,216.67,14.04125375]
[1734538413093,14.04125375,216.74,216.67,14.04125375]
[1734538413385,14.04125375,216.75,216.68,14.04125375]
[1734538413983,14.04125375,216.74,216.67,14.04125375]
[1734538415099,14.04125375,216.74,216.66,15.70385375]
[1734538415407,14.04125375,216.74,216.6,0.69203714]
[1734538415408,14.04125375,216.69,216.6,2.34343714]
[1734538415558,14.04125375,216.69,216.62,14.04125375]
[1734538416064,14.04125375,216.66,216.6,1.6514]
[1734538416566,14.04125375,216.7,216.55,1.6197]
[1734538416788,14.04125375,216.62,216.55,15.66095375]
[1734538417189,14.04125375,216.61,216.54,20.20805375]
[1734538417511,14.04125375,216.61,216.54,14.04125375]
[1734538417922,14.04125375,216.62,216.55,14.04125375]
[1734538418220,1.154,216.63,216.56,14.04125375]
[1734538418423,15.19525375,216.63,216.56,14.04125375]
[1734538418592,14.04125375,216.62,216.55,14.04125375]
[1734538418909,14.04125375,216.61,216.54,14.04125375]
[1734538419207,14.04125375,216.59,216.52,14.04125375]
[1734538419410,14.04125375,216.62,216.55,14.04125375]
[1734538420195,14.04125375,216.61,216.54,14.04125375]
[1734538421507,15.19525375,216.63,216.56,14.04125375]
[1734538423313,14.04125375,216.64,216.57,14.60282105]
[1734538423522,46.1366,216.76,216.57,14.60282105]
[1734538423523,15.19505375,216.66,216.59,14.04125375]
[1734538423689,14.04125375,216.66,216.59,14.04125375]
[1734538423889,14.04125375,216.69,216.62,14.04125375]
[1734538424087,14.04125375,216.7,216.63,37.81813775]
[1734538424303,14.04125375,216.7,216.63,14.04125375]
[1734538425050,14.04125375,216.7,216.62,14.04125375]
[1734538425204,14.04125375,216.68,216.6,37.81813775]
[1734538425404,15.19495375,216.68,216.6,37.81813775]
[1734538425706,14.04125375,216.65,216.57,14.60282105]
[1734538426017,14.04125375,216.64,216.57,14.60282105]
[1734538426402,14.04125375,216.65,216.57,14.60282105]
[1734538426823,14.04125375,216.64,216.57,14.60282105]
[1734538427023,14.04125375,216.65,216.57,14.60282105]
[1734538427215,14.04125375,216.64,216.57,14.60282105]
[1734538427415,14.04125375,216.63,216.57,0.5615673]
[1734538427841,34.04125375,216.59,216.57,0.5615673]
[1734538428006,14.04125375,216.61,216.57,0.5615673]
[1734538428336,14.04125375,216.62,216.57,0.5615673]
[1734538428634,14.04125375,216.61,216.57,0.5615673]
[1734538428933,20.0,216.62,216.57,14.60282105]
[1734538429233,14.04125375,216.65,216.58,14.04125375]
[1734538429536,14.04125375,216.63,216.57,0.5615673]
[1734538429838,15.19525375,216.63,216.57,0.5615673]
[1734538430834,14.04125375,216.65,216.57,14.60282105]
[1734538431016,14.04125375,216.64,216.57,14.60282105]
[1734538431339,14.04125375,216.59,216.57,0.5615673]
[1734538432020,14.04125375,216.58,216.57,0.5615673]
[1734538432223,14.04125375,216.59,216.57,0.5615673]
[1734538432423,14.04125375,216.61,216.57,0.5615673]
[1734538432720,14.04125375,216.6,216.57,0.5615673]
[1734538433123,14.04125375,216.61,216.57,0.5615673]
[1734538433322,14.04125375,216.62,216.57,0.5615673]
[1734538434021,15.19525375,216.63,216.57,0.5615673]
[1734538434217,14.04125375,216.64,216.57,0.5615673]
[1734538434416,15.19505375,216.67,216.6,14.04125375]
[1734538434619,15.19505375,216.67,216.58,23.776884]
[1734538434620,14.04125375,216.66,216.59,14.04125375]
[1734538435343,14.04125375,216.65,216.58,37.81813775]
[1734538435711,1.1536,216.71,216.62,14.04125375]
[1734538436045,14.04125375,216.72,216.64,14.04125375]
[1734538436939,14.04125375,216.7,216.62,14.04125375]
[1734538437140,14.04125375,216.7,216.63,23.776884]
[1734538437438,14.04125375,216.68,216.63,23.776884]
[1734538437620,1.1535,216.72,216.62,14.04125375]
[1734538437621,14.04125375,216.69,216.62,14.04125375]
[1734538437820,14.04125375,216.7,216.62,14.04125375]
[1734538438724,14.04125375,216.69,216.62,14.04125375]
[1734538439947,14.04125375,216.68,216.6,37.81813775]
[1734538440157,14.04125375,216.66,216.59,14.04125375]
[1734538440727,14.04125375,216.67,216.59,14.04125375]
[1734538441861,14.04125375,216.66,216.59,14.04125375]
[1734538442556,14.04125375,216.67,216.59,14.04125375]
[1734538444976,14.04125375,216.62,216.57,0.5615673]
[1734538445140,14.04125375,216.6,216.57,0.5615673]
[1734538445316,14.04125375,216.59,216.57,0.5615673]
[1734538445515,14.04125375,216.58,216.57,0.5615673]
[1734538446340,14.04125375,216.58,216.57,6.73e-05]
[1734538446868,15.19555375,216.58,216.57,6.73e-05]
[1734538447176,15.19555375,216.58,216.42,0.69280293]
[1734538447177,38.97243775,216.58,216.42,0.69280293]
[1734538447471,14.04125375,216.5,216.42,14.04125375]
[1734538448351,2.3086,216.58,216.46,14.04125375]
[1734538448551,14.04125375,216.54,216.46,14.04125375]
[1734538448765,2.3086,216.58,216.46,14.04125375]
[1734538448766,14.04125375,216.53,216.46,14.04125375]
[1734538449073,14.04125375,216.52,216.45,14.04125375]
[1734538449449,14.04125375,216.53,216.46,14.04125375]
[1734538449774,1.1543,216.59,216.48,14.04125375]
[1734538449978,14.04125375,216.53,216.43,23.776884]
[1734538450271,14.04125375,216.52,216.44,14.04125375]
[1734538451072,15.19555375,216.59,216.44,14.04125375]
[1734538451073,14.04125375,216.51,216.44,14.04125375]
[1734538451884,14.04125375,216.51,216.39,0.69276979]
[1734538451885,14.04125375,216.49,216.42,14.04125375]
[1734538452352,14.04125375,216.49,216.37,7.1509515]
[1734538452670,14.04125375,216.48,216.37,7.1509515]
[1734538452874,14.04125375,216.48,216.41,14.04125375]
[1734538453241,14.04125375,216.46,216.39,14.04125375]
[1734538453446,14.04125375,216.44,216.37,14.04125375]
[1734538453670,14.04125375,216.45,216.38,14.04125375]
[1734538454458,14.04125375,216.43,216.36,14.60282105]
[1734538454979,14.04125375,216.43,216.36,0.5615673]
[1734538455363,14.04125375,216.42,216.36,0.5615673]
[1734538455571,14.04125375,216.41,216.36,0.5615673]
[1734538455744,14.04125375,216.43,216.36,14.60282105]
[1734538455947,6.3331,216.51,216.41,14.04125375]
[1734538456176,1.6092,216.52,216.46,14.04125375]
[1734538456382,1.1544,216.56,216.46,14.04125375]
[1734538456547,1.1544,216.56,216.4,43.776884]
[1734538456886,1.1544,216.56,216.43,23.776884]
[1734538457182,1.1544,216.56,216.45,23.902374]
[1734538457396,1.1542,216.6,216.45,23.902374]
[1734538457549,1.1542,216.6,216.47,23.902374]
[1734538457878,14.04125375,216.56,216.49,14.04125375]
[1734538458054,14.04125375,216.56,216.48,14.04125375]
[1734538458261,14.04125375,216.55,216.47,37.81813775]
[1734538458564,14.04125375,216.56,216.48,14.04125375]
[1734538458744,14.04125375,216.55,216.47,37.81813775]
[1734538459162,14.04125375,216.56,216.48,14.04125375]
[1734538459581,14.04125375,216.55,216.47,37.81813775]
[1734538461864,3.9441,216.62,216.43,14.04125375]
[1734538461865,14.04125375,216.51,216.43,14.04125375]
[1734538462248,14.04125375,216.49,216.41,14.04125375]
[1734538463745,14.04125375,216.47,216.39,15.62895375]
[1734538464245,14.04125375,216.47,216.4,0.12549]
[1734538465084,14.04125375,216.47,216.4,23.902374]
[1734538465689,14.04125375,216.47,216.4,37.94362775]
[1734538466186,14.04125375,216.49,216.42,23.776884]
[1734538466383,14.04125375,216.5,216.43,14.04125375]
[1734538466591,1.1547,216.51,216.44,23.776884]
[1734538466592,15.19595375,216.51,216.44,23.776884]
[1734538466744,14.04125375,216.59,216.48,23.776884]
[1734538466745,1.1542,216.59,216.48,23.776884]
[1734538466950,14.04125375,216.56,216.48,23.776884]
[1734538467985,14.04125375,216.56,216.49,14.04125375]
[1734538468188,14.04125375,216.56,216.5,23.776884]
[1734538468477,14.04125375,216.54,216.47,14.04125375]
[1734538468682,14.04125375,216.54,216.48,23.776884]
[1734538468985,15.19565375,216.56,216.48,23.776884]
[1734538470190,1.1542,216.59,216.48,23.776884]
[1734538470516,1.1542,216.59,216.39,14.88533249]
[1734538470517,14.04125375,216.57,216.5,23.776884]
[1734538470792,15.19545375,216.59,216.52,23.776884]
[1734538471174,14.04125375,216.57,216.52,23.776884]
[1734538471888,14.04125375,216.57,216.47,0.12549]
[1734538472198,14.04125375,216.57,216.5,14.04125375]
[1734538472697,14.04125375,216.57,216.48,14.04125375]
[1734538472897,14.04125375,216.55,216.48,14.04125375]
[1734538473195,0.69284897,216.54,216.47,0.12549]
[1734538473393,14.04125375,216.53,216.46,14.04125375]
[1734538473788,1.1544,216.57,216.48,14.04125375]
[1734538473789,14.04125375,216.55,216.48,14.04125375]
[1734538474462,1.84734897,216.54,216.46,14.04125375]
[1734538474869,14.04125375,216.51,216.44,14.04125375]
[1734538475074,0.69284897,216.5,216.44,14.04125375]
[1734538475390,0.69284897,216.5,216.42,14.04125375]
[1734538475569,14.04125375,216.49,216.42,14.04125375]
[1734538475772,0.69284897,216.48,216.4,14.04125375]
[1734538475972,14.04125375,216.43,216.33,1.5214]
[1734538476288,0.69284897,216.42,216.36,14.04125375]
[1734538476479,14.04125375,216.43,216.36,14.04125375]
[1734538477124,0.69284897,216.42,216.34,0.12549]
[1734538477417,0.69284897,216.42,216.35,14.04125375]
[1734538477612,1.155,216.44,216.37,14.04125375]
[1734538477788,14.04125375,216.47,216.39,14.04125375]
[1734538477990,14.73410272,216.47,216.39,14.04125375]
[1734538479086,14.04125375,216.47,216.39,14.04125375]
[1734538479382,14.73410272,216.47,216.39,14.04125375]
[1734538480011,14.73410272,216.47,216.4,14.04125375]
[1734538480710,2.3098,216.46,216.4,14.04125375]
[1734538480911,0.69284897,216.45,216.4,14.04125375]
[1734538482510,14.73410272,216.45,216.38,14.04125375]
[1734538483279,14.73410272,216.45,216.36,14.04125375]
[1734538483486,2.3101,216.44,216.36,14.04125375]
[1734538483681,3.00294897,216.44,216.38,14.04125375]
[1734538483887,2.3101,216.44,216.39,14.04125375]
[1734538484311,2.3101,216.44,216.35,0.69309145]
[1734538484312,2.3101,216.44,216.38,14.04125375]
[1734538484523,0.69284897,216.45,216.4,14.04125375]
[1734538484710,0.69284897,216.47,216.41,14.04125375]
[1734538484894,3.00254897,216.48,216.43,14.04125375]
[1734538485088,3.00254897,216.48,216.42,14.04125375]
[1734538485089,2.3097,216.48,216.42,14.04125375]
[1734538485889,2.3097,216.48,216.41,14.04125375]
[1734538487316,2.3097,216.48,216.42,14.04125375]
[1734538487519,2.3097,216.48,216.35,43.902374]
[1734538487520,2.3097,216.48,216.41,14.04125375]
[1734538489824,14.04125375,216.49,216.41,14.04125375]
[1734538490028,7.6706,216.5,216.43,14.04125375]
[1734538490215,14.04125375,216.53,216.45,14.04125375]
[1734538490513,14.73410272,216.53,216.45,14.04125375]
[1734538490894,14.04125375,216.55,216.47,14.04125375]
[1734538491220,14.04125375,216.55,216.43,2.26951723]
[1734538491426,14.04125375,216.55,216.48,14.04125375]
[1734538491593,15.56885375,216.56,216.48,14.04125375]
[1734538491807,14.04125375,216.53,216.44,23.902374]
[1734538492008,16.35015375,216.55,216.48,14.04125375]
[1734538492234,14.04125375,216.57,216.48,14.04125375]
[1734538492718,17.04270272,216.58,216.5,14.04125375]
[1734538492919,14.73410272,216.6,216.52,14.04125375]
[1734538493140,14.04125375,216.6,216.52,14.04125375]
[1734538493727,14.04125375,216.59,216.52,14.04125375]
[1734538493933,14.04125375,216.59,216.51,14.04125375]
[1734538494436,14.73410272,216.58,216.5,14.04125375]
[1734538494613,14.04125375,216.57,216.49,14.04125375]
[1734538494806,14.04125375,216.57,216.5,0.12549]
[1734538495236,13.98561396,216.57,216.5,0.12549]
[1734538495939,3.00144897,216.58,216.51,14.04125375]
[1734538496309,0.69284897,216.58,216.53,14.04125375]
[1734538496513,22.05475375,216.61,216.53,14.04125375]
[1734538496713,14.04125375,216.6,216.53,14.04125375]
[1734538497212,14.04125375,216.59,216.53,23.902374]
[1734538498237,14.04125375,216.57,216.5,14.04125375]
[1734538498426,0.69284897,216.56,216.5,14.04125375]
[1734538498739,14.04125375,216.57,216.5,14.04125375]
[1734538499147,14.04125375,216.57,216.48,14.04125375]
[1734538499324,14.73410272,216.56,216.48,14.04125375]
[1734538500143,14.73410272,216.56,216.39,0.69278258]
[1734538500144,2.3089,216.55,216.39,0.69278258]
[1734538500333,14.04125375,216.52,216.45,14.04125375]
[1734538500530,34.04125375,216.49,216.4,2.69]
[1734538500722,34.04125375,216.49,216.42,14.04125375]
[1734538500937,1.6021,216.52,216.45,14.16674375]
[1734538501129,1.6021,216.52,216.43,0.12549]
[1734538501130,20.0,216.52,216.43,0.12549]
[1734538501335,3.00174897,216.55,216.47,14.04125375]
[1734538501662,2.3089,216.55,216.49,14.04125375]
[1734538501822,14.73410272,216.54,216.46,14.04125375]
[1734538502022,14.04125375,216.53,216.45,14.04125375]
[1734538502247,0.69284897,216.52,216.46,23.902374]
[1734538502452,14.04125375,216.53,216.45,14.04125375]
[1734538502953,14.04125375,216.53,216.46,14.04125375]
[1734538503317,14.04125375,216.53,216.43,0.69284318]
[1734538503318,14.04125375,216.54,216.47,14.04125375]
[1734538504239,14.04125375,216.53,216.46,23.902374]
[1734538504438,14.04125375,216.5,216.43,14.04125375]
[1734538504747,14.04125375,216.49,216.42,37.81813775]
[1734538504947,14.04125375,216.49,216.43,2.80549]
[1734538505445,14.04125375,216.48,216.43,2.80549]
[1734538505638,2.3093,216.52,216.43,2.80549]
[1734538505639,14.04125375,216.5,216.43,14.16674375]
[1734538505947,14.04125375,216.49,216.43,23.902374]
[1734538506667,14.04125375,216.5,216.43,14.04125375]
[1734538507549,16.35065375,216.51,216.44,14.04125375]
[1734538507751,14.04125375,216.49,216.43,0.12549]
[1734538507923,14.04125375,216.5,216.43,14.16674375]
[1734538508355,14.04125375,216.51,216.44,14.04125375]
[1734538509234,14.04125375,216.5,216.43,14.04125375]
[1734538509757,14.04125375,216.48,216.42,0.12549]
[1734538510051,14.04125375,216.49,216.42,14.16674375]
[1734538510355,14.04125375,216.5,216.43,14.04125375]
[1734538510922,0.69284897,216.53,216.43,14.04125375]
[1734538510923,14.04125375,216.51,216.43,14.04125375]
[1734538511125,16.35065375,216.51,216.43,14.04125375]
[1734538511430,14.04125375,216.5,216.43,14.04125375]
[1734538511744,16.35065375,216.51,216.43,14.04125375]
[1734538512131,0.69284897,216.55,216.46,14.16674375]
[1734538512132,14.04125375,216.53,216.46,14.16674375]
[1734538512370,16.35025375,216.55,216.48,14.04125375]
[1734538512868,14.04125375,216.52,216.45,14.04125375]
[1734538513530,14.73410272,216.54,216.47,14.04125375]
[1734538513856,14.04125375,216.54,216.47,14.04125375]
[1734538514230,14.04125375,216.53,216.46,14.04125375]
[1734538515074,14.04125375,216.54,216.47,14.16674375]
[1734538515276,16.35025375,216.55,216.47,14.16674375]
[1734538515770,14.04125375,216.53,216.46,14.04125375]
[1734538515975,14.04125375,216.53,216.45,14.04125375]
[1734538516188,2.309,216.55,216.42,23.776884]
[1734538516189,14.04125375,216.51,216.43,14.04125375]
[1734538516769,3.00204897,216.52,216.45,14.04125375]
[1734538516770,16.35045375,216.52,216.45,14.04125375]
[1734538516981,14.04125375,216.54,216.48,0.12549]
[1734538517157,14.04125375,216.55,216.48,14.16674375]
[1734538517360,16.35015375,216.56,216.49,14.04125375]
[1734538517776,16.35015375,216.56,216.49,0.12549]
[1734538518343,14.04125375,216.55,216.49,0.12549]
[1734538518543,14.04125375,216.51,216.44,14.04125375]
[1734538518779,14.04125375,216.48,216.4,14.04125375]
[1734538519147,14.04125375,216.49,216.42,14.16674375]
[1734538519577,2.309,216.54,216.46,0.12549]
[1734538519578,14.04125375,216.53,216.46,0.12549]
[1734538519780,2.309,216.54,216.48,14.04125375]
[1734538520080,14.04125375,216.56,216.49,14.16674375]
[1734538521077,14.04125375,216.55,216.49,0.12549]
[1734538521288,14.04125375,216.53,216.46,14.04125375]
[1734538521455,14.04125375,216.52,216.45,14.04125375]
[1734538521650,14.73410272,216.51,216.44,14.04125375]
[1734538521856,14.04125375,216.51,216.44,14.04125375]
[1734538522559,14.04125375,216.51,216.45,0.12549]
[1734538522772,16.35045375,216.52,216.45,14.16674375]
[1734538523103,14.04125375,216.5,216.45,0.12549]
[1734538523260,14.04125375,216.49,216.41,14.04125375]
[1734538523801,14.73410272,216.48,216.42,0.12549]
[1734538524166,14.04125375,216.46,216.38,14.04125375]
[1734538524369,14.73410272,216.45,216.38,14.04125375]
[1734538524666,14.04125375,216.45,216.38,14.04125375]
[1734538524977,34.04125375,216.46,216.39,0.12549]
[1734538525181,34.04125375,216.46,216.38,14.04125375]